Cogmind - Beta 13 X1 @@@ ROGUE MODE // 2023.08.06 @ 00:32:47 Player: Runia Result: Destroyed by W2-1L9(R) with Subdweller Machine Gun Performance ------------- Evolutions (0) 0 Regions Visited (3) 600 Robots Destroyed (39) 195 Value Destroyed (1046) 1046 Prototype IDs (12) 240 Alien Tech Used (0) 0 Bonus (0) 0 TOTAL SCORE: 2081 Bonus ------- None Cogmind --------- Core Integrity 0/250 Matter 300/300 Energy 200/200 System Corruption 0% Temperature Cool (0) Movement Treading (240) Ox1 Location -10/Subcaves Parts ------- > --- POWER (1) -------- Subdweller Power Source > --- PROPULSION (2) --- Light Treads Subdweller Monowheel > --- UTILITY (2) ------ Disposable Heat Sink Large Storage Unit > --- WEAPON (2) ------- Subdweller Beam Cannon Barrage Gun > --- INVENTORY (15) --- Light Nuclear Core Meta Core Improved Heat Sink Large Matter Pod (150) ECM Suite Cobbler Unit Subdweller Machine Gun Subdweller Machine Gun Grenade Launcher Grenade Launcher Subdweller Shrapnel Launcher Makeshift Hammer Makeshift Hammer Makeshift Spear Peak State ------------ > --- POWER ------------ Subdweller Power Source > --- PROPULSION ------- Light Treads Subdweller Monowheel > --- UTILITY ---------- Disposable Heat Sink Large Storage Unit > --- WEAPON ----------- Subdweller Beam Cannon Barrage Gun > --- INVENTORY -------- Light Nuclear Core Meta Core Improved Heat Sink Large Matter Pod ECM Suite Cobbler Unit Subdweller Machine Gun Subdweller Machine Gun Grenade Launcher Grenade Launcher Subdweller Shrapnel Launcher Makeshift Hammer Makeshift Hammer Makeshift Spear [Rating: 17] Favorites ----------- Power Ion Engine Engine Ion Engine Propulsion Light Treads Treads Light Treads Leg Aluminum Leg Wheel Wheel Utility Large Storage Unit Device Disposable Heat Sink Storage Large Storage Unit Protection Light Armor Plating Weapon EM Pulse Gun Energy Gun EM Pulse Gun Energy Cannon Subdweller Beam Cannon Ballistic Gun Assault Rifle Launcher Grenade Launcher Impact Weapon Flail Piercing Weapon Makeshift Spear Build | -11 -10 -10 -10 ------- Run | Jun Mat Min Sub Slots Evolved . | . . . . Power . | . . . . Propulsion . | . . . . Utility . | . . . . Weapon . | . . . . Parts Attached 41 | 2 10 10 19 Power 4 | . 1 1 2 Engine 4 | . 1 1 2 Core . | . . . . Reactor . | . . . . Propulsion 8 | 2 2 1 3 Treads 4 | 2 1 . 1 Leg . | . . . . Wheel 4 | . 1 1 2 Hover . | . . . . Flight . | . . . . Utility 4 | . 4 . . Device 1 | . 1 . . Storage 1 | . 1 . . Processor . | . . . . Hackware . | . . . . Protection 2 | . 2 . . Artifact . | . . . . Weapon 25 | . 3 8 14 Energy Gun 3 | . . 3 . Energy Cannon 6 | . . . 6 Ballistic Gun 4 | . 2 . 2 Ballistic Cannon . | . . . . Launcher 3 | . . 2 1 Special Weapon . | . . . . Impact Weapon 7 | . 1 3 3 Slashing Weapon . | . . . . Piercing Weapon 2 | . . . 2 Special Melee Weapon . | . . . . Unidentified Prototypes . | . . . . Parts Lost 7 | . 2 2 3 Power 1 | . . . 1 Propulsion 4 | . 1 1 2 Utility 1 | . 1 . . Weapon 1 | . . 1 . Highest Loss Streak 3 | . 2 1 3 To Critical Strikes . | . . . . Average Slot Usage (%) 98 | . 99 97 98 Engine 13 | . 14 14 12 Treads 18 | . 25 14 13 Wheel 9 | . 2 13 13 Device 9 | . 2 14 14 Storage 14 | . 14 14 14 Protection 4 | . 11 . . Energy Gun 4 | . 7 8 . Energy Cannon 5 | . . . 12 Ballistic Gun 10 | . 17 2 8 Impact Weapon 4 | . 2 14 2 Piercing Weapon 1 | . . . 3 Naked Turns . | . . . . Heaviest Build 37 | 14 32 31 37 Greatest Support 40 | 40 40 10 20 Greatest Overweight (x) 3 | . 3 3 3 Average Overweight (x) 1 | . . 2 2 Largest Inventory Capacity 15 | 8 15 15 15 Average Capacity 13 | 8 11 15 15 Most Carried 15 | 6 15 15 15 Average Carried 12 | 5 8 14 14 Final Capacity 15 | 8 15 15 15 Final Carried 15 | 4 15 15 15 Class Distribution -------------------- 89% | Mutant 10% | Derelict-Mutant Dominant Class ---------------- Mutant | -10/Materials Mutant | -10/Mines Mutant | -10/Subcaves Resources | -11 -10 -10 -10 ----------- Run | Jun Mat Min Sub Matter Collected 1020 | 153 335 246 286 Remotely . | . . . . Salvage Created 1319 | . 709 170 440 Parts 93 | . 48 17 28 Haulers Intercepted 2 | . 2 . . Recyclers Shooed . | . . . . Parts Field Recycled . | . . . . Retrieved Matter . | . . . . Parts Self-Destructed 8 | . . . 8 Prevented . | . . . . Kills | -11 -10 -10 -10 ------- Run | Jun Mat Min Sub Combat Hostiles Destroyed 33 | . 16 9 8 Melee 2 | . 1 1 . Guns 12 | . 11 . 1 Cannons 7 | . . . 7 AOE 8 | . 2 6 . Classes Destroyed 9 | . 6 1 2 Worker 1 | . 1 . . Builder 1 | . . 1 . Tunneler 1 | . 1 . . Hauler 2 | . 2 . . Watcher 1 | . 1 . . Swarmer 9 | . 3 6 . Grunt 16 | . 13 3 . Cobbler 2 | . . . 2 Subdweller 8 | . . . 8 Best Kill Streak 5 | . 5 4 2 Combat Bots Only 5 | . 5 3 2 Max Kills in Single Turn 3 | . 2 3 1 Gunslinging . | . . . . Exploded 3 | . 2 3 . Melee 1 | . 1 1 . Uniques/NPCs Destroyed . | . . . . Combat | -11 -10 -10 -10 -------- Run | Jun Mat Min Sub Damage Taken 1486 | . 769 222 495 Core 263 | . 97 23 143 Absorbed by Shields . | . . . . Regen/Repaired (Parts) 42 | . 42 . . Core Remaining (%) 100 | 100 . . . Volleys Fired 104 | . 66 6 32 Largest 2 | . 2 1 2 Hottest 140 | . 80 40 140 Shots Fired 191 | . 132 6 53 Gun 153 | . 132 3 18 Cannon 32 | . . . 32 Launcher 6 | . . 3 3 Special . | . . . . Kinetic 100 | . 82 . 18 Thermal 32 | . . . 32 Explosive 6 | . . 3 3 Electromagnetic 53 | . 50 3 . Robot Hit Streak 14 | . 14 1 9 Robot Miss Streak 4 | . 4 2 2 Penetration Max . | . . . . Secondary Targets . | . . . . Shots Hit Robots 138 | . 94 9 35 Core Hits 60 | . 35 12 13 Critical Kills 1 | . . . 1 Critical Parts Destroyed 3 | . 3 . . Critical Strikes 4 | . 3 . 1 Meltdown 1 | . . . 1 Smash 3 | . 3 . . Melee Attacks 61 | . 11 20 30 Impact 48 | . 11 20 17 Slashing . | . . . . Piercing 13 | . . . 13 Sneak Attacks 5 | . . 2 3 Combat Hostiles 1 | . . 1 . Follow-up Attacks . | . . . . Damage Inflicted 2943 | . 1381 641 921 Guns 1226 | . 1037 13 176 Cannons 565 | . . . 565 Explosions 344 | . 94 250 . Melee 808 | . 250 378 180 Ramming . | . . . . Kinetic 792 | . 616 . 176 Thermal 659 | . 94 . 565 Explosive 250 | . . 250 . Electromagnetic 434 | . 421 13 . Impact 628 | . 250 378 . Slashing . | . . . . Piercing 180 | . . . 180 Highest Corruption . | . . . . Average Corruption . | . . . . Corruption Purged . | . . . . Corruption Blocked . | . . . . Overload Shots . | . . . . Overflow Damage 183 | . 154 22 7 Projectiles . | . . . . Explosions . | . . . . Melee 183 | . 154 22 7 Knockbacks 5 | . 2 3 . Impact 5 | . 2 3 . Kinetic . | . . . . Secondary . | . . . . Self-Inflicted Damage 66 | . 36 30 . Shots 2 | . 1 1 . Rammed . | . . . . Targets Rammed . | . . . . Kicked . | . . . . Crushed . | . . . . Highest Temperature 252 | . 252 . 74 Average Temperature 53 | . 58 . 31 Received Heat Transfer 561 | . 384 66 111 Siege Activations . | . . . . Robots Corrupted 1 | . . 1 . Combat Hostiles 1 | . . 1 . Parts Fried 5 | . 5 . . Impact Corruptions 7 | . 5 2 . Robots Melted 1 | . . . 1 Combat Hostiles . | . . . . Parts Melted 3 | . . . 3 Heat Transferred 877 | . 100 . 777 Parts Sabotaged . | . . . . Parts Stolen . | . . . . Parts Stripped . | . . . . Power Chain Reactions 1 | . 1 . . Missiles Intercepted . | . . . . Alert | -11 -10 -10 -10 ------- Run | Jun Mat Min Sub Peak Influence 340 | . 330 340 . Initial 89 | . . 89 . Average 182 | . 189 170 . Maximum Alert Level 1 | . 1 1 . Low Security (%) 47 | 100 39 62 . Level 1 52 | . 60 37 . Level 2 . | . . . . Level 3 . | . . . . Level 4 . | . . . . Level 5 . | . . . . High Security . | . . . . Max Security . | . . . . Squads Dispatched 4 | . 4 . . Investigation 3 | . 3 . . Extermination . | . . . . Reinforcement 1 | . 1 . . Assault . | . . . . Garrison . | . . . . Intercept . | . . . . Searches Triggered . | . . . . Construction Impeded . | . . . . Haulers Reinforced . | . . . . Active Scanning Responses . | . . . . Cargo Convoy Interrupts . | . . . . Stealth | -11 -10 -10 -10 --------- Run | Jun Mat Min Sub Distress Signals 1 | . 1 . . Communications Jammed . | . . . . Distress Signals . | . . . . Times Spotted 43 | . 25 9 9 Peak Tracking Total 6 | . 6 3 3 Tactical Retreats 2 | . . 2 . Traps | -11 -10 -10 -10 ------- Run | Jun Mat Min Sub Traps Triggered 1 | . 1 . . Indirectly . | . . . . Trap Hack Attempts . | . . . . Triggered . | . . . . Disarmed . | . . . . Reprogrammed . | . . . . Reused . | . . . . Traps Extracted . | . . . . Installed . | . . . . Triggered . | . . . . Most Traps Carried 1 | . . . 1 Machines | -11 -10 -10 -10 ---------- Run | Jun Mat Min Sub Machines Disabled 3 | . 1 1 1 Max in Single Turn 1 | . 1 1 1 Machines Repaired . | . . . . Machines Sabotaged . | . . . . Overloaded Fab Kills . | . . . . Hacking | -11 -10 -10 -10 --------- Run | Jun Mat Min Sub Machines Accessed 7 | . 6 . 1 Terminals 3 | . 3 . . Fabricators . | . . . . Repair Stations 1 | . 1 . . Recycling Units 2 | . 2 . . Scanalyzers . | . . . . Garrison Access . | . . . . Total Hacks 19 | . 18 . 1 Successful 9 | . 8 . 1 Failed 10 | . 10 . . Catastrophic 1 | . 1 . . Database Lockouts . | . . . . Manual 8 | . 8 . . Terminals 12 | . 12 . . Fabricators . | . . . . Repair Stations 4 | . 4 . . Recycling Units 2 | . 2 . . Scanalyzers . | . . . . Garrison Access . | . . . . Terminal Hacks 4 | . 3 . 1 Robot Analysis 1 | . 1 . . Prototype ID Bank 1 | . 1 . . Zone Layout 1 | . 1 . . Derelict Proto ID Bank 1 | . . . 1 Fabricator Hacks . | . . . . Repair Station Hacks 2 | . 2 . . Scan Component 1 | . 1 . . Repair 1 | . 1 . . Recycling Unit Hacks . | . . . . Scanalyzer . | . . . . Garrison Access Hacks . | . . . . Unauthorized Hacks 3 | . 3 . . Terminals 1 | . 1 . . Botnet 1 | . 1 . . Fabricators . | . . . . Repair Stations . | . . . . Recycling Units 2 | . 2 . . Tunnel 2 | . 2 . . Scanalyzers . | . . . . Garrison Access . | . . . . Data Cores Recovered . | . . . . Used . | . . . . Hacking Detections 3 | . 3 . . Full Trace Events . | . . . . Feedback Events . | . . . . Feedback Blocked . | . . . . Robot Schematics Acquired . | . . . . Robots Built . | . . . . Authchips . | . . . . Time . | . . . . Total Robot Build Rating . | . . . . Part Schematics Acquired . | . . . . Parts Built . | . . . . Authchips . | . . . . Time . | . . . . Total Part Build Rating . | . . . . Parts Repaired 1 | . 1 . . Time 26 | . 26 . . Parts Recycled . | . . . . Recycled Matter . | . . . . Retrieved Matter . | . . . . Retrieved Components . | . . . . Parts Scanalyzed . | . . . . Part Schematics Acquired . | . . . . Parts Damaged . | . . . . Bothacking | -11 -10 -10 -10 ------------ Run | Jun Mat Min Sub Used RIF Installer . | . . . . Robots Hacked . | . . . . Non-combat . | . . . . Combat . | . . . . Robot Hacks Applied . | . . . . Relay Couplers Released . | . . . . Fabnet Peak Effective % . | . . . . Robots Rewired . | . . . . Allies Hacked . | . . . . Hacks Repelled . | . . . . Allies | -11 -10 -10 -10 -------- Run | Jun Mat Min Sub Total Allies . | . . . . Largest Group . | . . . . Highest-Rated Group . | . . . . Highest-Rated Ally . | . . . . Total Orders . | . . . . Ally Attacks . | . . . . Total Damage . | . . . . Kills . | . . . . Allies Corrupted . | . . . . Allies Melted . | . . . . Intel | -11 -10 -10 -10 ------- Run | Jun Mat Min Sub Robot Analysis Total 1 | . 1 . . Derelict Logs Recovered 1 | . . 1 . Drone Launches . | . . . . Drone Recoveries . | . . . . Exploration | -11 -10 -10 -10 ------------- Run | Jun Mat Min Sub Turns Passed 2734 | 3 1043 532 1156 Spaces Moved 1518 | 1 482 393 642 Core . | . . . . Treads 487 | 1 346 . 140 Legs . | . . . . Wheels 1031 | . 136 393 502 Hover . | . . . . Flight . | . . . . Fastest Speed 110 | 160 110 110 110 Average Speed 139 | 160 145 114 149 Slowest Speed 240 | 160 160 125 240 Overloaded Moves . | . . . . Propulsion Burnouts . | . . . . Robots Hopped . | . . . . Cave-ins Triggered . | . . . . Exploration Rate (%) 53 | 2 73 88 51 Regions Visited 3 Branch Regions 2 Pre-discovered Areas 3 | . 2 1 . Known Exits Taken . | . . . . Unknown Exits Taken 3 | 1 1 1 . Scrap Searched 10 | . . 3 7 Spaces Dug 26 | . . 11 15 Terrain Destroyed 52 | . 2 19 31 Melee 17 | . . 2 15 Projectile . | . . . . AOE 35 | . 2 17 16 Terrain Rammed . | . . . . Walls Destroyed . | . . . . Machines Disabled . | . . . . Actions | -11 -10 -10 -10 --------- Run | Jun Mat Min Sub Total 1886 | 4 682 442 758 Wait 105 | . 85 8 12 Move 1515 | . 481 392 642 Hop . | . . . . Pick Up 33 | . 20 3 10 Fast Attach 7 | . 3 1 3 Attach 9 | 2 3 3 1 Detach . | . . . . Swap 25 | . 4 6 15 Drop 27 | 2 9 3 13 Fire 104 | . 66 6 32 Melee 61 | . 11 20 30 Ram . | . . . . Kick . | . . . . Crush . | . . . . Escape Stasis . | . . . . Rewire . | . . . . Trap . | . . . . Miscellaneous . | . . . . Route ------- -11/Junkyard -10/Materials (discovered 3 exits: [*Mat] / [*Min x2]) -10/Mines (discovered 3 exits: [*Mat x2] / *Sub) -10/Subcaves History --------- Turn | Location | Event 4 | -11/Junkyard | Discovered new exit (range 0) 4 | -11/Junkyard | Entered Materials 311 | -10/Materials | Build established: Mutant 327 | -10/Materials | Repaired Lgt. Armor Plating 786 | -10/Materials | Discovered new exit (range 12) 954 | -10/Materials | Discovered new exit (range 8) 1025 | -10/Materials | Discovered new exit (range 7) 1047 | -10/Materials | Entered Mines 1069 | -10/Mines | Met a Derelict bent on vengeance 1100 | -10/Mines | Discovered new exit (range 11) 1114 | -10/Mines | Discovered new exit (range 9) 1298 | -10/Mines | A weapon hastily lodged in a ceiling crevice suddenly fell to the ground 1541 | -10/Mines | Learned location of Zion (-7) 1575 | -10/Mines | Discovered new exit (range 3) 1579 | -10/Mines | Entered Subcaves 1581 | -10/Subcaves | Shifting Twisted Machinery released Mak. Spear 1754 | -10/Subcaves | Core integrity fell below 50% 2183 | -10/Subcaves | Shifting Twisted Machinery released Riot Gun 2352 | -10/Subcaves | Visited 4L-MR0's lab 2379 | -10/Subcaves | Core integrity fell below 20% 2411 | -10/Subcaves | Lost 3 parts (1p2n) 2424 | -10/Subcaves | Found Prototype Power Core 2437 | -10/Subcaves | Identified Meta Core 2735 | -10/Subcaves | Destroyed by W2-1L9(R) with Subdweller Machine Gun Last Messages --------------- >>Derelict Proto ID Bank Downloading prototype IDs... Meta Core Arachnoskeleton Cargo Legs Tripod Weapons Platform Flightbrick Gun Armor Power Bank Rainbow Chip VL-GR5's Exoskeleton "Deathgrip" Powered Cannon 02451_ Acquired 17 matter. 02456_ Dropped Sub. Beam Cannon. 02466_ Acquired Sub. Power Source. 02478_ Acquired 20 matter. 02504_ Searching scrap... 02504_ Found Sub. Monowheel. 02504_ Found Flamer. 02504_ Found 18 Matter. Map ----- +----------------------------------------------------+ | ?????????????????????????????????????????????????? | | ?????????????????????????????????????????????????? | | ?????????????????????????????????????????????????? | | ?????????????????????????????????????????????????? | | ?????????????????????????????????????????????????? | | ?????????????????????????????????????????????????? | | ?????????????????????????????????????????????????? | | ?????????????????????????????????????????????????? | | ?????????????????????????????????????????????????? | | ?????????????????????????????????????????????????? | | ?????????????????????????????????????????????????? | | ?????????????????????????????????????????????????? | | ?????????????????????????????????????????????????? | | ?????????????????????????????????????????????????? | | ????????????????????????????????##???????????????? | | ???????????????????????????????? #???????????????? | | ??????????????????????????????? ????????????????? | | ??????????????????????????????? ????????????????? | | ??????????????????????????????? ????????????????? | | ??????????????????????????????? ####?????????????? | | ??????????????????????????????? #?????????????? | | ??????????????????????????????# ???????????????? | | ?????????????????????#????#### #????????????????? | | ##???????????????????#$?### #??????? #???????? | | ##??????????????????#$?# #< # #???#?? ???????? | | ####???????????????#$ #@ # #?? ## ? ??????? | | ##??????????????#"&#R#< #?? # ??????? | | #####???????????# <## #? #??????? | | #???????????##### # #??????? | | # #???????????????### # ????????? | | ###### ##???????????????# # #????????????? | | ##?### ##??????????????## #????????????? | | ### #???????????????# ## #???????????? | | ####??????????????## ## ## #?????????? | | #?????????????????# #? #????????? | | ### ##????????????????# ## ##?? ???????? | | ?## #????????????????# # #??? ???????? | | ## # ###????????????????# # ##???? ???????? | | # ### #?????????????????# #?????????????? | | ## #?????????????????## ##?????????????? | | ## #?????????????????## #?????????????? | | #### ##?????????????????# # #?????????????? | | ##?## #??????????????????## ##?????????????? | | ###??# ##?????????????????# #?????????????? | | #????## #?????????????????# %###?????????????? | | ####### #################### #???????????????? | | ## # # # # ## ####????????????? | | #?# ????????? | | ## ????????? | | ### # # ## ???????? | +----------------------------------------------------+ Best States ------------- Heat Dissipation 25 Coolant Potential 50 Energy Generation 10 Energy Capacity 250 Matter Stores 300 Matter Capacity 300 Sight Range 16 Terrain Scan Density 10 Armor Coverage 150 Evasion (%) 40 Recoil Reduction 2 Item Schematics ----------------- None Robot Schematics ------------------ None Fabricated ------------ Nothing Alien Tech Used ----------------- None Achievements -------------- None Challenges ------------ None Game ------ Seed PointyRelayNukerbomber Manual? 0 Play Time 00:18:00 Cumulative 834.3 hours Start 2023.08.06 @ 00:15:38 End 2023.08.06 @ 00:32:47 Sessions 1 Manual Loads 0 Difficulty Rogue Special Mode None Game No. 719 Rogue 719 Adventurer 0 Explorer 0 Win Type - Total 41 Types 14/7/8/1/1/1/7/1/1 Lore% 93 Gallery% 96 Achievement% 82 Wizard Run 0 Options --------- ASCII 0 Keyboard 0 Movement Mouse Keybinds 1 Fullscreen 2 Font 24/Smallcaps Map View 76x50 Tactical HUD 1 Map Filters NONE Filters NONE Steam 1 RUN: d12bade5-da82-4825-aabf-bb04f687e26f